[Event "Titled Tuesday Blitz December 20 Late 2022"]
[White "Carbone, Diego"]
[Black "Shapiro, Daniel"]
[WhiteFideId "3002179"]
[BlackFideId "2001780"]
[WhiteElo "2266"]
[BlackElo "2331"]
[Result "1-0"]
[Round "05"]
[TimeControl "180+1"]
[Date "2022.12.21"]
[WhiteClock "0:01:31"]
[BlackClock "0:00:50"]

1. d4 {[%clk 0:02:57]}  Nf6 {[%clk 0:02:59]} 2. c4 {[%clk 0:02:56]}  e6 {[%clk 0:02:59]} 3. Nc3 {[%clk 0:02:56]}  Bb4 {[%clk 0:02:59]} 4. Qc2 {[%clk 0:02:57]}  d5 {[%clk 0:02:57]} 5. a3 {[%clk 0:02:55]}  Be7 {[%clk 0:02:52]} 6. cxd5 {[%clk 0:02:54]}  exd5 {[%clk 0:02:51]} 7. Bf4 {[%clk 0:02:48]}  c6 {[%clk 0:02:49]} 8. e3 {[%clk 0:02:48]}  a5 {[%clk 0:02:42]} 9. Bd3 {[%clk 0:02:48]}  O-O {[%clk 0:02:40]} 10. Nge2 {[%clk 0:02:41]}  Bg4 {[%clk 0:02:32]} 11. f3 {[%clk 0:02:40]}  Bh5 {[%clk 0:02:32]} 12. g4 {[%clk 0:02:35]}  Bg6 {[%clk 0:02:32]} 13. Bxg6 {[%clk 0:02:31]}  fxg6 {[%clk 0:02:30]} 14. h4 {[%clk 0:02:30]}  Ne8 {[%clk 0:02:22]} 15. h5 {[%clk 0:02:26]}  g5 {[%clk 0:02:22]} 16. h6 {[%clk 0:02:09]}  g6 {[%clk 0:01:58]} 17. Be5 {[%clk 0:02:08]}  Rxf3 {[%clk 0:01:52]} 18. Qxg6+ {[%clk 0:02:08]}  Kf8 {[%clk 0:01:30]} 19. Qxh7 {[%clk 0:02:06]}  Bf6 {[%clk 0:01:13]} 20. O-O-O {[%clk 0:01:54]}  Nd7 {[%clk 0:01:08]} 21. Rdf1 {[%clk 0:01:50]}  Rxf1+ {[%clk 0:01:02]} 22. Rxf1 {[%clk 0:01:51]}  Qe7 {[%clk 0:01:02]} 23. Qh8+ {[%clk 0:01:39]}  Kf7 {[%clk 0:00:59]} 24. h7 {[%clk 0:01:31]}  Nxe5 {[%clk 0:00:50]} 25. Qg8# {[%clk 0:01:31]} 1-0


[Site "https://www.chess.com"]

[Event "Titled Tuesday Blitz December 20 Late 2022"]
[White "ChessBrah"]
[Black "Carlsen, Magnus"]
[BlackFideId "1503014"]
[WhiteElo "2890"]
[BlackElo "2830"]
[Result "0-1"]
[Round "05"]
[TimeControl "180+1"]
[Date "2022.12.21"]
[WhiteClock "0:00:07"]
[BlackClock "0:01:59"]

1. e4 {[%clk 0:02:41]}  c5 {[%clk 0:02:58]} 2. Nf3 {[%clk 0:02:40]}  d6 {[%clk 0:02:57]} 3. Bb5+ {[%clk 0:02:33]}  Bd7 {[%clk 0:02:57]} 4. Bxd7+ {[%clk 0:02:33]}  Qxd7 {[%clk 0:02:57]} 5. O-O {[%clk 0:02:33]}  Nf6 {[%clk 0:02:57]} 6. Re1 {[%clk 0:02:33]}  Nc6 {[%clk 0:02:55]} 7. c3 {[%clk 0:02:18]}  e6 {[%clk 0:02:55]} 8. d4 {[%clk 0:02:11]}  cxd4 {[%clk 0:02:56]} 9. cxd4 {[%clk 0:02:12]}  d5 {[%clk 0:02:56]} 10. e5 {[%clk 0:02:12]}  Ng8 {[%clk 0:02:56]} 11. Nc3 {[%clk 0:01:56]}  Bb4 {[%clk 0:02:55]} 12. Bd2 {[%clk 0:01:52]}  Bf8 {[%clk 0:02:53]} 13. Rc1 {[%clk 0:01:51]}  Nge7 {[%clk 0:02:53]} 14. Ne2 {[%clk 0:01:49]}  h5 {[%clk 0:02:49]} 15. Nf4 {[%clk 0:01:32]}  Nf5 {[%clk 0:02:48]} 16. Bc3 {[%clk 0:01:32]}  Be7 {[%clk 0:02:46]} 17. a3 {[%clk 0:01:25]}  g5 {[%clk 0:02:46]} 18. Ne2 {[%clk 0:01:23]}  g4 {[%clk 0:02:46]} 19. Nd2 {[%clk 0:01:23]}  Bg5 {[%clk 0:02:41]} 20. Rc2 {[%clk 0:01:18]}  O-O-O {[%clk 0:02:37]} 21. Nb3 {[%clk 0:01:17]}  b6 {[%clk 0:02:38]} 22. Bd2 {[%clk 0:01:17]}  Be7 {[%clk 0:02:36]} 23. Bb4 {[%clk 0:01:10]}  Kb7 {[%clk 0:02:36]} 24. Bxe7 {[%clk 0:01:10]}  Ncxe7 {[%clk 0:02:37]} 25. Nc3 {[%clk 0:01:09]}  Rc8 {[%clk 0:02:35]} 26. Qd3 {[%clk 0:01:07]}  h4 {[%clk 0:02:32]} 27. a4 {[%clk 0:00:59]}  Rc4 {[%clk 0:02:20]} 28. a5 {[%clk 0:00:55]}  Nc6 {[%clk 0:02:21]} 29. axb6 {[%clk 0:00:53]}  axb6 {[%clk 0:02:21]} 30. Rd2 {[%clk 0:00:28]}  Ncxd4 {[%clk 0:02:14]} 31. Nxd4 {[%clk 0:00:29]}  Rxd4 {[%clk 0:02:14]} 32. Qe2 {[%clk 0:00:28]}  Rxd2 {[%clk 0:02:14]} 33. Qxd2 {[%clk 0:00:29]}  h3 {[%clk 0:02:14]} 34. g3 {[%clk 0:00:27]}  Qc6 {[%clk 0:02:13]} 35. f3 {[%clk 0:00:24]}  gxf3 {[%clk 0:02:12]} 36. Qf2 {[%clk 0:00:20]}  Qc5 {[%clk 0:02:11]} 37. Na4 {[%clk 0:00:17]}  Qxf2+ {[%clk 0:02:11]} 38. Kxf2 {[%clk 0:00:18]}  Rc8 {[%clk 0:02:06]} 39. Kxf3 {[%clk 0:00:16]}  Rc2 {[%clk 0:02:06]} 40. g4 {[%clk 0:00:16]}  Nd4+ {[%clk 0:02:06]} 41. Kg3 {[%clk 0:00:16]}  b5 {[%clk 0:02:07]} 42. Nc3 {[%clk 0:00:16]}  Rxb2 {[%clk 0:02:07]} 43. Kxh3 {[%clk 0:00:10]}  Rb3 {[%clk 0:02:07]} 44. Re3 {[%clk 0:00:10]}  b4 {[%clk 0:02:00]} 45. Nd1 {[%clk 0:00:11]}  Rxe3+ {[%clk 0:01:58]} 46. Nxe3 {[%clk 0:00:11]}  b3 {[%clk 0:01:57]} 47. Nd1 {[%clk 0:00:12]}  Nf3 {[%clk 0:01:58]} 48. Kg3 {[%clk 0:00:11]}  Nxe5 {[%clk 0:01:58]} 49. h4 {[%clk 0:00:11]}  Kc6 {[%clk 0:01:59]} 50. h5 {[%clk 0:00:11]}  f6 {[%clk 0:01:59]} 51. Kf4 {[%clk 0:00:11]}  Nf7 {[%clk 0:01:59]} 52. Ke3 {[%clk 0:00:10]}  Kc5 {[%clk 0:01:58]} 53. Kd3 {[%clk 0:00:10]}  Ne5+ {[%clk 0:01:58]} 54. Kc3 {[%clk 0:00:10]}  Nxg4 {[%clk 0:01:59]} 55. Nf2 {[%clk 0:00:08]}  Nxf2 {[%clk 0:01:57]} 56. h6 {[%clk 0:00:06]}  Ne4+ {[%clk 0:01:58]} 57. Kxb3 {[%clk 0:00:07]}  Ng5 {[%clk 0:01:59]} 0-1


[Site "https://www.chess.com"]

[Event "Titled Tuesday Blitz December 20 Late 2022"]
[White "D`Arruda, Ricardo D."]
[Black "Brodowski, Piotr"]
[WhiteFideId "100692"]
[BlackFideId "1124480"]
[WhiteElo "2435"]
[BlackElo "2351"]
[Result "1-0"]
[Round "05"]
[TimeControl "180+1"]
[Date "2022.12.21"]
[WhiteClock "0:00:07"]
[BlackClock "0:00:03"]

1. d4 {[%clk 0:02:45]}  d6 {[%clk 0:03:00]} 2. e4 {[%clk 0:02:45]}  g6 {[%clk 0:03:00]} 3. Nc3 {[%clk 0:02:45]}  Bg7 {[%clk 0:02:58]} 4. Nf3 {[%clk 0:02:45]}  a6 {[%clk 0:02:58]} 5. Bg5 {[%clk 0:02:44]}  b5 {[%clk 0:02:58]} 6. Qd2 {[%clk 0:02:45]}  Bb7 {[%clk 0:02:58]} 7. O-O-O {[%clk 0:02:45]}  Nd7 {[%clk 0:02:55]} 8. e5 {[%clk 0:02:45]}  Nb6 {[%clk 0:02:49]} 9. Bd3 {[%clk 0:02:40]}  h6 {[%clk 0:02:47]} 10. Bh4 {[%clk 0:02:37]}  g5 {[%clk 0:02:47]} 11. Bg3 {[%clk 0:02:37]}  e6 {[%clk 0:02:46]} 12. exd6 {[%clk 0:02:32]}  cxd6 {[%clk 0:02:46]} 13. Rhe1 {[%clk 0:02:31]}  Ne7 {[%clk 0:02:45]} 14. h4 {[%clk 0:02:22]}  g4 {[%clk 0:02:43]} 15. Nh2 {[%clk 0:02:22]}  h5 {[%clk 0:02:43]} 16. f3 {[%clk 0:02:06]}  gxf3 {[%clk 0:02:36]} 17. Nxf3 {[%clk 0:02:03]}  Bxf3 {[%clk 0:02:28]} 18. gxf3 {[%clk 0:02:03]}  Rc8 {[%clk 0:02:10]} 19. Kb1 {[%clk 0:02:02]}  Nc4 {[%clk 0:01:45]} 20. Qg5 {[%clk 0:02:00]}  Kf8 {[%clk 0:01:36]} 21. Ne2 {[%clk 0:01:42]}  Nd5 {[%clk 0:01:17]} 22. Qxd8+ {[%clk 0:01:35]}  Rxd8 {[%clk 0:01:16]} 23. Nf4 {[%clk 0:01:21]}  Nde3 {[%clk 0:01:01]} 24. Bxc4 {[%clk 0:01:08]}  Nxd1 {[%clk 0:00:34]} 25. Bf1 {[%clk 0:01:04]}  Nxb2 {[%clk 0:00:24]} 26. Kxb2 {[%clk 0:01:03]}  Bxd4+ {[%clk 0:00:24]} 27. Kb3 {[%clk 0:00:53]}  Bf6 {[%clk 0:00:24]} 28. Nd3 {[%clk 0:00:47]}  Ke7 {[%clk 0:00:23]} 29. Nb4 {[%clk 0:00:43]}  Kd7 {[%clk 0:00:17]} 30. Nxa6 {[%clk 0:00:43]}  Ra8 {[%clk 0:00:17]} 31. Nb4 {[%clk 0:00:43]}  Rab8 {[%clk 0:00:17]} 32. Rd1 {[%clk 0:00:39]}  Rhg8 {[%clk 0:00:17]} 33. Bxd6 {[%clk 0:00:35]}  Rbd8 {[%clk 0:00:14]} 34. Be5+ {[%clk 0:00:34]}  Ke7 {[%clk 0:00:14]} 35. Nc6+ {[%clk 0:00:33]}  Ke8 {[%clk 0:00:13]} 36. Nxd8 {[%clk 0:00:26]}  Bxd8 {[%clk 0:00:14]} 37. Bxb5+ {[%clk 0:00:24]}  Ke7 {[%clk 0:00:14]} 38. Bd6+ {[%clk 0:00:19]}  Kf6 {[%clk 0:00:14]} 39. Bf4 {[%clk 0:00:20]}  Kf5 {[%clk 0:00:14]} 40. Be3 {[%clk 0:00:19]}  Bxh4 {[%clk 0:00:14]} 41. Bd3+ {[%clk 0:00:19]}  Kf6 {[%clk 0:00:14]} 42. Rh1 {[%clk 0:00:20]}  Bg5 {[%clk 0:00:14]} 43. f4 {[%clk 0:00:19]}  Bh6 {[%clk 0:00:13]} 44. Rxh5 {[%clk 0:00:20]}  Rb8+ {[%clk 0:00:13]} 45. Kc3 {[%clk 0:00:19]}  Bf8 {[%clk 0:00:12]} 46. Bd4+ {[%clk 0:00:18]}  Ke7 {[%clk 0:00:12]} 47. Rh7 {[%clk 0:00:16]}  Ke8 {[%clk 0:00:11]} 48. Kd2 {[%clk 0:00:16]}  Ra8 {[%clk 0:00:10]} 49. a4 {[%clk 0:00:15]}  Rd8 {[%clk 0:00:09]} 50. Bb5+ {[%clk 0:00:15]}  Ke7 {[%clk 0:00:09]} 51. Ke3 {[%clk 0:00:15]}  Kd6 {[%clk 0:00:08]} 52. c4 {[%clk 0:00:14]}  Be7 {[%clk 0:00:08]} 53. Be5+ {[%clk 0:00:14]}  Kc5 {[%clk 0:00:08]} 54. Rxf7 {[%clk 0:00:14]}  Bh4 {[%clk 0:00:08]} 55. Rc7+ {[%clk 0:00:13]}  Kb4 {[%clk 0:00:09]} 56. Rd7 {[%clk 0:00:12]}  Rg8 {[%clk 0:00:08]} 57. Bd6+ {[%clk 0:00:10]}  Kc3 {[%clk 0:00:08]} 58. a5 {[%clk 0:00:10]}  Bd8 {[%clk 0:00:06]} 59. a6 {[%clk 0:00:09]}  Bb6+ {[%clk 0:00:05]} 60. Ke4 {[%clk 0:00:09]}  Rg3 {[%clk 0:00:04]} 61. c5 {[%clk 0:00:09]}  Ba5 {[%clk 0:00:04]} 62. a7 {[%clk 0:00:09]}  e5 {[%clk 0:00:03]} 63. Bxe5+ {[%clk 0:00:09]}  Kb4 {[%clk 0:00:02]} 64. a8=Q {[%clk 0:00:10]}  Kxb5 {[%clk 0:00:03]} 65. Qb7+ {[%clk 0:00:10]}  Kc4 {[%clk 0:00:03]} 66. Qd5+ {[%clk 0:00:10]}  Kb4 {[%clk 0:00:03]} 67. Rb7+ {[%clk 0:00:10]}  Ka4 {[%clk 0:00:03]} 68. Qc4+ {[%clk 0:00:10]}  Ka3 {[%clk 0:00:03]} 69. Bb2# {[%clk 0:00:07]} 1-0


[Site "https://www.chess.com"]

[Event "Titled Tuesday Blitz December 20 Late 2022"]
[White "Da Silva Junior, Sediney Mari"]
[Black "Adel, Sara"]
[WhiteFideId "2132079"]
[BlackFideId "10616764"]
[WhiteElo "1996"]
[BlackElo "1997"]
[Result "0-1"]
[Round "05"]
[TimeControl "180+1"]
[Date "2022.12.21"]
[WhiteClock "0:00:02"]
[BlackClock "0:00:29"]

1. e4 {[%clk 0:02:58]}  c6 {[%clk 0:02:54]} 2. c4 {[%clk 0:02:55]}  d5 {[%clk 0:02:54]} 3. exd5 {[%clk 0:02:56]}  cxd5 {[%clk 0:02:54]} 4. cxd5 {[%clk 0:02:56]}  Nf6 {[%clk 0:02:55]} 5. Nc3 {[%clk 0:02:55]}  a6 {[%clk 0:02:55]} 6. a4 {[%clk 0:02:52]}  b6 {[%clk 0:02:55]} 7. Bc4 {[%clk 0:02:49]}  Bb7 {[%clk 0:02:55]} 8. Qb3 {[%clk 0:02:48]}  Nbd7 {[%clk 0:02:54]} 9. d3 {[%clk 0:02:38]}  Nc5 {[%clk 0:02:54]} 10. Qa2 {[%clk 0:02:28]}  g6 {[%clk 0:02:34]} 11. Nf3 {[%clk 0:02:27]}  Bg7 {[%clk 0:02:34]} 12. O-O {[%clk 0:02:28]}  O-O {[%clk 0:02:34]} 13. Re1 {[%clk 0:02:28]}  b5 {[%clk 0:02:32]} 14. Bb3 {[%clk 0:02:14]}  Nxd3 {[%clk 0:02:29]} 15. Rd1 {[%clk 0:02:09]}  Nb4 {[%clk 0:02:29]} 16. Qb1 {[%clk 0:02:04]}  Nbxd5 {[%clk 0:02:27]} 17. Bg5 {[%clk 0:01:20]}  Nxc3 {[%clk 0:02:15]} 18. bxc3 {[%clk 0:01:20]}  Qc7 {[%clk 0:02:13]} 19. Qd3 {[%clk 0:00:59]}  Rad8 {[%clk 0:02:06]} 20. Qe3 {[%clk 0:00:58]}  Ne4 {[%clk 0:02:04]} 21. Bf4 {[%clk 0:00:54]}  Qxc3 {[%clk 0:02:03]} 22. Rac1 {[%clk 0:00:35]}  Qb2 {[%clk 0:01:33]} 23. axb5 {[%clk 0:00:28]}  axb5 {[%clk 0:01:33]} 24. h4 {[%clk 0:00:26]}  Rxd1+ {[%clk 0:01:30]} 25. Rxd1 {[%clk 0:00:23]}  Nc3 {[%clk 0:01:30]} 26. Rd7 {[%clk 0:00:19]}  Ne2+ {[%clk 0:01:25]} 27. Kh2 {[%clk 0:00:18]}  Nxf4 {[%clk 0:01:25]} 28. Rxb7 {[%clk 0:00:13]}  e5 {[%clk 0:00:58]} 29. Rxb5 {[%clk 0:00:12]}  Qe2 {[%clk 0:00:56]} 30. Qxe2 {[%clk 0:00:12]}  Nxe2 {[%clk 0:00:56]} 31. Nxe5 {[%clk 0:00:12]}  Nd4 {[%clk 0:00:54]} 32. Bxf7+ {[%clk 0:00:03]}  Rxf7 {[%clk 0:00:49]} 33. Nxf7 {[%clk 0:00:04]}  Nxb5 {[%clk 0:00:49]} 34. Ng5 {[%clk 0:00:04]}  h6 {[%clk 0:00:49]} 35. Nf3 {[%clk 0:00:04]}  Kf7 {[%clk 0:00:48]} 36. g3 {[%clk 0:00:04]}  Ke6 {[%clk 0:00:48]} 37. Kg2 {[%clk 0:00:05]}  Kf5 {[%clk 0:00:48]} 38. Nh2 {[%clk 0:00:05]}  Nc3 {[%clk 0:00:48]} 39. f3 {[%clk 0:00:05]}  Bd4 {[%clk 0:00:46]} 40. Ng4 {[%clk 0:00:06]}  h5 {[%clk 0:00:46]} 41. Nh6+ {[%clk 0:00:05]}  Ke6 {[%clk 0:00:45]} 42. g4 {[%clk 0:00:06]}  Nd5 {[%clk 0:00:43]} 43. Ng8 {[%clk 0:00:05]}  Kf7 {[%clk 0:00:42]} 44. Nh6+ {[%clk 0:00:05]}  Kg7 {[%clk 0:00:36]} 45. g5 {[%clk 0:00:05]}  Nf4+ {[%clk 0:00:33]} 46. Kg3 {[%clk 0:00:06]}  Ne2+ {[%clk 0:00:31]} 47. Kg2 {[%clk 0:00:05]}  Kf8 {[%clk 0:00:29]} 48. Kf1 {[%clk 0:00:05]}  Nf4 {[%clk 0:00:29]} 49. Ke1 {[%clk 0:00:04]}  Bg7 {[%clk 0:00:29]} 50. Kd2 {[%clk 0:00:02]}  Ng2 {[%clk 0:00:29]} 0-1


[Site "https://www.chess.com"]

[Event "Titled Tuesday Blitz December 20 Late 2022"]
[White "Delorme, Axel"]
[Black "Bach, Matthias"]
[WhiteFideId "632023"]
[BlackFideId "4603168"]
[WhiteElo "2478"]
[BlackElo "2165"]
[Result "0-1"]
[Round "05"]
[TimeControl "180+1"]
[Date "2022.12.21"]
[WhiteClock "0:00:04"]
[BlackClock "0:01:10"]

1. e4 {[%clk 0:03:00]}  e5 {[%clk 0:02:50]} 2. Nf3 {[%clk 0:03:01]}  Nc6 {[%clk 0:02:50]} 3. Bb5 {[%clk 0:03:01]}  Bc5 {[%clk 0:02:50]} 4. O-O {[%clk 0:03:00]}  d6 {[%clk 0:02:50]} 5. c3 {[%clk 0:03:00]}  a6 {[%clk 0:02:50]} 6. Ba4 {[%clk 0:02:57]}  Bb6 {[%clk 0:02:42]} 7. d4 {[%clk 0:02:52]}  exd4 {[%clk 0:02:40]} 8. cxd4 {[%clk 0:02:51]}  Bd7 {[%clk 0:02:39]} 9. Nc3 {[%clk 0:02:48]}  Nge7 {[%clk 0:02:38]} 10. Bg5 {[%clk 0:02:35]}  f6 {[%clk 0:02:36]} 11. Be3 {[%clk 0:02:34]}  O-O {[%clk 0:02:35]} 12. Rc1 {[%clk 0:02:27]}  Bg4 {[%clk 0:02:29]} 13. Bb3+ {[%clk 0:02:07]}  Kh8 {[%clk 0:02:28]} 14. Nd5 {[%clk 0:01:59]}  Nxd5 {[%clk 0:02:26]} 15. Bxd5 {[%clk 0:01:54]}  Bxf3 {[%clk 0:02:20]} 16. gxf3 {[%clk 0:01:47]}  Qd7 {[%clk 0:02:16]} 17. Bxc6 {[%clk 0:01:42]}  bxc6 {[%clk 0:02:15]} 18. Kg2 {[%clk 0:01:34]}  f5 {[%clk 0:02:07]} 19. h3 {[%clk 0:01:03]}  f4 {[%clk 0:02:01]} 20. Bd2 {[%clk 0:01:03]}  Rf6 {[%clk 0:02:01]} 21. Rh1 {[%clk 0:00:50]}  Bxd4 {[%clk 0:01:52]} 22. Bc3 {[%clk 0:00:51]}  Bxc3 {[%clk 0:01:48]} 23. Rxc3 {[%clk 0:00:52]}  Re8 {[%clk 0:01:47]} 24. Qa4 {[%clk 0:00:51]}  d5 {[%clk 0:01:39]} 25. exd5 {[%clk 0:00:30]}  Qxd5 {[%clk 0:01:40]} 26. Qxa6 {[%clk 0:00:18]}  Rg6+ {[%clk 0:01:36]} 27. Kh2 {[%clk 0:00:15]}  Qg5 {[%clk 0:01:27]} 28. Qf1 {[%clk 0:00:13]}  Re1 {[%clk 0:01:23]} 29. Ra3 {[%clk 0:00:04]}  h5 {[%clk 0:01:10]} 0-1


[Site "https://www.chess.com"]

[Event "Titled Tuesday Blitz December 20 Late 2022"]
[White "Fieberg, Samuel"]
[Black "Mihajlov, Sebastian"]
[WhiteFideId "12901717"]
[BlackFideId "1512110"]
[WhiteElo "2420"]
[BlackElo "2464"]
[Result "0-1"]
[Round "05"]
[TimeControl "180+1"]
[Date "2022.12.21"]
[WhiteClock "0:00:58"]
[BlackClock "0:00:30"]

1. d4 {[%clk 0:02:42]}  Nf6 {[%clk 0:02:58]} 2. Bg5 {[%clk 0:02:42]}  Ne4 {[%clk 0:02:57]} 3. Bf4 {[%clk 0:02:42]}  d5 {[%clk 0:02:55]} 4. f3 {[%clk 0:02:39]}  Nf6 {[%clk 0:02:52]} 5. Nc3 {[%clk 0:02:40]}  a6 {[%clk 0:02:45]} 6. Qd2 {[%clk 0:02:31]}  e6 {[%clk 0:02:44]} 7. a3 {[%clk 0:02:31]}  b5 {[%clk 0:02:44]} 8. h4 {[%clk 0:02:28]}  h5 {[%clk 0:02:43]} 9. Nh3 {[%clk 0:02:27]}  c5 {[%clk 0:02:43]} 10. e3 {[%clk 0:02:26]}  Nc6 {[%clk 0:02:42]} 11. Ne2 {[%clk 0:02:02]}  Qb6 {[%clk 0:02:36]} 12. c3 {[%clk 0:02:02]}  Be7 {[%clk 0:02:33]} 13. b4 {[%clk 0:02:00]}  cxd4 {[%clk 0:02:29]} 14. exd4 {[%clk 0:01:56]}  a5 {[%clk 0:02:25]} 15. Rb1 {[%clk 0:01:55]}  axb4 {[%clk 0:02:24]} 16. axb4 {[%clk 0:01:56]}  Nd7 {[%clk 0:01:40]} 17. Nf2 {[%clk 0:01:55]}  e5 {[%clk 0:01:37]} 18. Be3 {[%clk 0:01:55]}  Qb7 {[%clk 0:01:35]} 19. Nd3 {[%clk 0:01:52]}  O-O {[%clk 0:01:28]} 20. g4 {[%clk 0:01:42]}  hxg4 {[%clk 0:01:27]} 21. fxg4 {[%clk 0:01:38]}  exd4 {[%clk 0:01:27]} 22. Nxd4 {[%clk 0:01:34]}  Nde5 {[%clk 0:01:25]} 23. Nxe5 {[%clk 0:01:26]}  Nxe5 {[%clk 0:01:25]} 24. Be2 {[%clk 0:01:25]}  Nc4 {[%clk 0:01:21]} 25. Bxc4 {[%clk 0:01:13]}  dxc4 {[%clk 0:01:21]} 26. O-O {[%clk 0:01:12]}  Bxh4 {[%clk 0:01:20]} 27. Nf5 {[%clk 0:01:02]}  Bxf5 {[%clk 0:01:11]} 28. Rxf5 {[%clk 0:01:03]}  Qe4 {[%clk 0:01:07]} 29. Rf4 {[%clk 0:00:58]}  Qxb1+ {[%clk 0:00:30]} 0-1


[Site "https://www.chess.com"]

[Event "Titled Tuesday Blitz December 20 Late 2022"]
[White "Fiorito, Francisco"]
[Black "Maksimovic, Bojan"]
[WhiteFideId "180165"]
[BlackFideId "14408120"]
[WhiteElo "2348"]
[BlackElo "2462"]
[Result "0-1"]
[Round "05"]
[TimeControl "180+1"]
[Date "2022.12.21"]
[WhiteClock "0:00:01"]
[BlackClock "0:01:08"]

1. Nf3 {[%clk 0:03:00]}  Nf6 {[%clk 0:02:52]} 2. g3 {[%clk 0:03:00]}  g6 {[%clk 0:02:53]} 3. Bg2 {[%clk 0:02:59]}  Bg7 {[%clk 0:02:53]} 4. O-O {[%clk 0:02:59]}  O-O {[%clk 0:02:54]} 5. c4 {[%clk 0:02:59]}  d6 {[%clk 0:02:55]} 6. d4 {[%clk 0:02:56]}  Nbd7 {[%clk 0:02:54]} 7. Nc3 {[%clk 0:02:56]}  c6 {[%clk 0:02:54]} 8. e4 {[%clk 0:02:55]}  e5 {[%clk 0:02:55]} 9. d5 {[%clk 0:02:55]}  cxd5 {[%clk 0:02:50]} 10. cxd5 {[%clk 0:02:52]}  Nc5 {[%clk 0:02:45]} 11. Re1 {[%clk 0:02:51]}  a5 {[%clk 0:02:40]} 12. h3 {[%clk 0:02:42]}  Bd7 {[%clk 0:02:36]} 13. a3 {[%clk 0:02:31]}  a4 {[%clk 0:02:33]} 14. Bg5 {[%clk 0:02:28]}  h6 {[%clk 0:02:32]} 15. Bxf6 {[%clk 0:02:04]}  Bxf6 {[%clk 0:02:33]} 16. Qe2 {[%clk 0:02:04]}  Qa5 {[%clk 0:02:33]} 17. h4 {[%clk 0:02:00]}  h5 {[%clk 0:02:27]} 18. Nd2 {[%clk 0:01:56]}  Qa6 {[%clk 0:02:25]} 19. Qxa6 {[%clk 0:01:54]}  Rxa6 {[%clk 0:02:26]} 20. Bf1 {[%clk 0:01:53]}  Ra7 {[%clk 0:02:06]} 21. Bb5 {[%clk 0:01:41]}  Bg4 {[%clk 0:02:04]} 22. Nc4 {[%clk 0:01:37]}  Be7 {[%clk 0:02:02]} 23. Kg2 {[%clk 0:01:33]}  Rb8 {[%clk 0:01:54]} 24. f3 {[%clk 0:01:33]}  Bc8 {[%clk 0:01:54]} 25. Nb6 {[%clk 0:01:27]}  Bd8 {[%clk 0:01:54]} 26. Nbxa4 {[%clk 0:01:25]}  Nb3 {[%clk 0:01:45]} 27. Rad1 {[%clk 0:01:23]}  Nd4 {[%clk 0:01:44]} 28. b3 {[%clk 0:01:02]}  Nxb3 {[%clk 0:01:34]} 29. Bf1 {[%clk 0:00:42]}  b5 {[%clk 0:01:30]} 30. Nb2 {[%clk 0:00:34]}  Rxa3 {[%clk 0:01:29]} 31. Kh1 {[%clk 0:00:18]}  Nd4 {[%clk 0:01:29]} 32. Rd3 {[%clk 0:00:11]}  b4 {[%clk 0:01:29]} 33. Ne2 {[%clk 0:00:08]}  Ba6 {[%clk 0:01:29]} 34. Rxa3 {[%clk 0:00:07]}  bxa3 {[%clk 0:01:30]} 35. Nxd4 {[%clk 0:00:07]}  exd4 {[%clk 0:01:31]} 36. Bxa6 {[%clk 0:00:07]}  axb2 {[%clk 0:01:31]} 37. Bd3 {[%clk 0:00:08]}  Ba5 {[%clk 0:01:31]} 38. Rb1 {[%clk 0:00:07]}  Bc3 {[%clk 0:01:31]} 39. Kg2 {[%clk 0:00:07]}  Kg7 {[%clk 0:01:32]} 40. Kf1 {[%clk 0:00:08]}  Kf6 {[%clk 0:01:32]} 41. Ke2 {[%clk 0:00:08]}  g5 {[%clk 0:01:31]} 42. hxg5+ {[%clk 0:00:08]}  Kxg5 {[%clk 0:01:32]} 43. Rh1 {[%clk 0:00:06]}  h4 {[%clk 0:01:32]} 44. gxh4+ {[%clk 0:00:05]}  Kf4 {[%clk 0:01:33]} 45. h5 {[%clk 0:00:04]}  Rg8 {[%clk 0:01:33]} 46. Kf2 {[%clk 0:00:04]}  Bd2 {[%clk 0:01:32]} 47. h6 {[%clk 0:00:03]}  Be3+ {[%clk 0:01:31]} 48. Kf1 {[%clk 0:00:03]}  Kxf3 {[%clk 0:01:22]} 49. h7 {[%clk 0:00:03]}  Rh8 {[%clk 0:01:22]} 50. Rh3+ {[%clk 0:00:03]}  Kg4 {[%clk 0:01:22]} 51. Kg2 {[%clk 0:00:03]}  Kg5 {[%clk 0:01:12]} 52. Kf3 {[%clk 0:00:02]}  Bf4 {[%clk 0:01:12]} 53. Rh1 {[%clk 0:00:01]}  Bc1 {[%clk 0:01:10]} 54. Rg1+ {[%clk 0:00:02]}  Kf6 {[%clk 0:01:10]} 55. Rf1 {[%clk 0:00:01]}  Kg7 {[%clk 0:01:11]} 56. Rh1 {[%clk 0:00:02]}  Rxh7 {[%clk 0:01:06]} 57. Rxh7+ {[%clk 0:00:03]}  Kxh7 {[%clk 0:01:07]} 58. e5+ {[%clk 0:00:03]}  Kg7 {[%clk 0:01:07]} 59. exd6 {[%clk 0:00:04]}  Kf8 {[%clk 0:01:07]} 60. Ke4 {[%clk 0:00:04]}  Be3 {[%clk 0:01:05]} 61. Kf5 {[%clk 0:00:04]}  Ke8 {[%clk 0:01:04]} 62. Kf6 {[%clk 0:00:04]}  Kd7 {[%clk 0:01:04]} 63. Kxf7 {[%clk 0:00:05]}  Kxd6 {[%clk 0:01:04]} 64. Kf6 {[%clk 0:00:05]}  Kxd5 {[%clk 0:01:05]} 65. Kf5 {[%clk 0:00:05]}  Kc5 {[%clk 0:01:05]} 66. Ke4 {[%clk 0:00:05]}  Kb4 {[%clk 0:01:06]} 67. Bb1 {[%clk 0:00:06]}  Kc3 {[%clk 0:01:06]} 68. Kf3 {[%clk 0:00:02]}  Kd2 {[%clk 0:01:07]} 69. Be4 {[%clk 0:00:01]}  Kc1 {[%clk 0:01:08]} 0-1


[Site "https://www.chess.com"]